Name,Sub Group,Service Area,Expense Type,Narrative,Date,Transaction Number,Amount,Supplier Name,Supplier Ref,Period,Year
Allerdale Borough Council,21303,Transfer Payments,Parish Councils,Parish Councils,01/09/2015,134185,11985.62,ABOVE DERWENT PC,X00042,6,2015
Allerdale Borough Council,21303,Transfer Payments,Parish Councils,Parish Councils,01/09/2015,134186,1950,AIKTON P.C.,X00043,6,2015
Allerdale Borough Council,21303,Transfer Payments,Parish Councils,Parish Councils,01/09/2015,134187,5171.38,ALLERBY & OUGHTERSIDE P,X00044,6,2015
Allerdale Borough Council,21303,Transfer Payments,Parish Councils,Parish Councils,01/09/2015,134188,4499.99,ALLHALLOWS P.C.,X00045,6,2015
Allerdale Borough Council,21303,Transfer Payments,Parish Councils,Parish Councils,01/09/2015,134189,4500,ALLONBY P.C.,X00046,6,2015
Allerdale Borough Council,21303,Transfer Payments,Parish Councils,Parish Councils,01/09/2015,134190,29999.99,ASPATRIA T.C.,X00047,6,2015
Allerdale Borough Council,21303,Transfer Payments,Parish Councils,Parish Councils,01/09/2015,134191,3740.66,BASSENTHWAITE P.C.,X00048,6,2015
Allerdale Borough Council,21303,Transfer Payments,Parish Councils,Parish Councils,01/09/2015,134192,4750,BLENNERHASSETT P.C.,X00050,6,2015
Allerdale Borough Council,21303,Transfer Payments,Parish Councils,Parish Councils,01/09/2015,134193,1700,BLINDBOTHEL P.C.,X00051,6,2015
Allerdale Borough Council,21303,Transfer Payments,Parish Councils,Parish Councils,01/09/2015,134194,3000,BLINDCRAKE P.C.,X00052,6,2015
Allerdale Borough Council,21303,Transfer Payments,Parish Councils,Parish Councils,01/09/2015,134195,2150,BOLTONS P.C.,X00053,6,2015
Allerdale Borough Council,21303,Transfer Payments,Parish Councils,Parish Councils,01/09/2015,134196,2484.73,BORROWDALE P.C.,X00054,6,2015
Allerdale Borough Council,21303,Transfer Payments,Parish Councils,Parish Councils,01/09/2015,134197,2500,BOTHEL P.C.,X00055,6,2015
Allerdale Borough Council,21303,Transfer Payments,Parish Councils,Parish Councils,01/09/2015,134198,9666.14,BOWNESS P.C.,X00056,6,2015
Allerdale Borough Council,21303,Transfer Payments,Parish Councils,Parish Councils,01/09/2015,134199,3250,BRIDEKIRK P.C.,X00057,6,2015
Allerdale Borough Council,21303,Transfer Payments,Parish Councils,Parish Councils,01/09/2015,134200,4911.5,BRIGHAM P.C.,X00058,6,2015
Allerdale Borough Council,21303,Transfer Payments,Parish Councils,Parish Councils,01/09/2015,134201,3000,BROMFIELD P.C.,X00059,6,2015
Allerdale Borough Council,21303,Transfer Payments,Parish Councils,Parish Councils,01/09/2015,134202,6307.19,BROUGHTON P.C.,X00060,6,2015
Allerdale Borough Council,21303,Transfer Payments,Parish Councils,Parish Councils,01/09/2015,134203,7567.49,BROUGHTON MOOR P.C.,X00061,6,2015
Allerdale Borough Council,21303,Transfer Payments,Parish Councils,Parish Councils,01/09/2015,134204,700,BUTTERMERE P.C.,X00062,6,2015
Allerdale Borough Council,21303,Transfer Payments,Parish Councils,Parish Councils,01/09/2015,134205,5450,CALDBECK P.C.,X00063,6,2015
Allerdale Borough Council,21303,Transfer Payments,Parish Councils,Parish Councils,01/09/2015,134206,1061.98,CAMERTON P.C.,X00064,6,2015
Allerdale Borough Council,21303,Transfer Payments,Parish Councils,Parish Councils,01/09/2015,134207,94912.99,COCKERMOUTH T.C.,X00065,6,2015
Allerdale Borough Council,21303,Transfer Payments,Parish Councils,Parish Councils,01/09/2015,134208,5665.99,CROSSCANONBY P.C.,X00066,6,2015
Allerdale Borough Council,21303,Transfer Payments,Parish Councils,Parish Councils,01/09/2015,134209,7122.5,DEAN P.C.,X00067,6,2015
Allerdale Borough Council,21303,Transfer Payments,Parish Councils,Parish Councils,01/09/2015,134210,12000,DEARHAM P.C.,X00068,6,2015
Allerdale Borough Council,21303,Transfer Payments,Parish Councils,Parish Councils,01/09/2015,134211,875,DUNDRAW P.C.,X00069,6,2015
Allerdale Borough Council,21303,Transfer Payments,Parish Councils,Parish Councils,01/09/2015,134212,1954.27,EMBLETON P.C.,X00070,6,2015
Allerdale Borough Council,21303,Transfer Payments,Parish Councils,Parish Councils,01/09/2015,134213,4099.99,GILCRUX P.C.,X00071,6,2015
Allerdale Borough Council,21303,Transfer Payments,Parish Councils,Parish Councils,01/09/2015,134214,4000,GREAT CLIFTON P.C.,X00072,6,2015
Allerdale Borough Council,21303,Transfer Payments,Parish Councils,Parish Councils,01/09/2015,134215,6000,GREYSOUTHERN P.C.,X00073,6,2015
Allerdale Borough Council,21303,Transfer Payments,Parish Councils,Parish Councils,01/09/2015,134216,1999.99,HAYTON & MEALO P.C.,X00074,6,2015
Allerdale Borough Council,21303,Transfer Payments,Parish Councils,Parish Councils,01/09/2015,134217,6359.99,HOLME ABBEY P.C.,X00075,6,2015
Allerdale Borough Council,21303,Transfer Payments,Parish Councils,Parish Councils,01/09/2015,134218,3287.19,HOLME EAST WEAVER P.C.,X00076,6,2015
Allerdale Borough Council,21303,Transfer Payments,Parish Councils,Parish Councils,01/09/2015,134219,999.99,HOLME LOW P.C.,X00077,6,2015
Allerdale Borough Council,21303,Transfer Payments,Parish Councils,Parish Councils,01/09/2015,134220,2650,HOLME ST CUTHBERT P.C.,X00078,6,2015
Allerdale Borough Council,21303,Transfer Payments,Parish Councils,Parish Councils,01/09/2015,134221,3720,IREBY & ULDALE P.C.,X00079,6,2015
Allerdale Borough Council,21303,Transfer Payments,Parish Councils,Parish Councils,01/09/2015,134222,100810.01,KESWICK T.C.,X00080,6,2015
Allerdale Borough Council,21303,Transfer Payments,Parish Councils,Parish Councils,01/09/2015,134223,3249.99,KIRKBAMPTON P.C.,X00081,6,2015
Allerdale Borough Council,21303,Transfer Payments,Parish Councils,Parish Councils,01/09/2015,134224,5028.15,KIRKBRIDE P.C.,X00082,6,2015
Allerdale Borough Council,21303,Transfer Payments,Parish Councils,Parish Councils,01/09/2015,134225,2500,LITTLE CLIFTON P.C.,X00083,6,2015
Allerdale Borough Council,21303,Transfer Payments,Parish Councils,Parish Councils,01/09/2015,134226,2749.99,LORTON P.C.,X00084,6,2015
Allerdale Borough Council,21303,Transfer Payments,Parish Councils,Parish Councils,01/09/2015,134227,1224.99,LOWESWATER P.C.,X00085,6,2015
Allerdale Borough Council,21303,Transfer Payments,Parish Councils,Parish Councils,01/09/2015,134228,90850,MARYPORT T.C.,X00086,6,2015
Allerdale Borough Council,21303,Transfer Payments,Parish Councils,Parish Councils,01/09/2015,134229,4325,PAPCASTLE P.C.,X00087,6,2015
Allerdale Borough Council,21303,Transfer Payments,Parish Councils,Parish Councils,01/09/2015,134230,2611.56,PLUMBLAND P.C.,X00088,6,2015
Allerdale Borough Council,21303,Transfer Payments,Parish Councils,Parish Councils,01/09/2015,134231,26150,SEATON P.C.,X00089,6,2015
Allerdale Borough Council,21303,Transfer Payments,Parish Councils,Parish Councils,01/09/2015,134232,2024.59,SEBERGHAM P.C.,X00090,6,2015
Allerdale Borough Council,21303,Transfer Payments,Parish Councils,Parish Councils,01/09/2015,134233,249.41,SETMURTHY P.C.,X00091,6,2015
Allerdale Borough Council,21303,Transfer Payments,Parish Councils,Parish Councils,01/09/2015,134234,78040,SILLOTH T.C.,X00092,6,2015
Allerdale Borough Council,21303,Transfer Payments,Parish Councils,Parish Councils,01/09/2015,134235,2750,ST JOHNS P.C.,X00093,6,2015
Allerdale Borough Council,21303,Transfer Payments,Parish Councils,Parish Councils,01/09/2015,134236,11117.5,THURSBY P.C.,X00094,6,2015
Allerdale Borough Council,21303,Transfer Payments,Parish Councils,Parish Councils,01/09/2015,134237,2365.67,UNDERSKIDDAW P.C.,X00095,6,2015
Allerdale Borough Council,21303,Transfer Payments,Parish Councils,Parish Councils,01/09/2015,134238,2200,WAVERTON P.C.,X00096,6,2015
Allerdale Borough Council,21303,Transfer Payments,Parish Councils,Parish Councils,01/09/2015,134239,2499.99,WESTNEWTON P.C.,X00097,6,2015
Allerdale Borough Council,21303,Transfer Payments,Parish Councils,Parish Councils,01/09/2015,134240,2500,WESTWARD P.C.,X00098,6,2015
Allerdale Borough Council,21303,Transfer Payments,Parish Councils,Parish Councils,01/09/2015,134241,97317.05,WIGTON TOWN COUNCIL,X00099,6,2015
Allerdale Borough Council,21303,Transfer Payments,Parish Councils,Parish Councils,01/09/2015,134242,1374.99,WINSCALES P.C.,X00100,6,2015
Allerdale Borough Council,21303,Transfer Payments,Parish Councils,Parish Councils,01/09/2015,134243,4310.62,WOODSIDE P.C.,X00101,6,2015
Allerdale Borough Council,21303,Transfer Payments,Parish Councils,Parish Councils,01/09/2015,134244,191447.33,WORKINGTON T.C.,X00102,6,2015
Allerdale Borough Council,21303,Transfer Payments,Parish Councils,Parish Councils,01/09/2015,134245,409.75,WYTHOP P.C.,X00103,6,2015
Allerdale Borough Council,10101,Employee Costs,Shared IT Services Pay Group,Basic Pay,22/07/2015,134246,264.47,ADECCO RECRUITMENT,A00188,6,2015
Allerdale Borough Council,10101,Employee Costs,Shared IT Services Pay Group,Basic Pay,22/07/2015,134247,470.16,ADECCO RECRUITMENT,A00188,6,2015
Allerdale Borough Council,10101,Employee Costs,Shared IT Services Pay Group,Basic Pay,22/07/2015,134248,499.55,ADECCO RECRUITMENT,A00188,6,2015
Allerdale Borough Council,10101,Employee Costs,Shared IT Services Pay Group,Basic Pay,29/07/2015,134249,483.22,ADECCO RECRUITMENT,A00188,6,2015
Allerdale Borough Council,10101,Employee Costs,Shared IT Services Pay Group,Basic Pay,12/08/2015,134250,483.22,ADECCO RECRUITMENT,A00188,6,2015
Allerdale Borough Council,15501,Supplies & Services,Homelessness,Consultants Fees,13/08/2015,134251,72.95,BEECHWOOD GROUP PRACTICE,A00533,6,2015
Allerdale Borough Council,10101,Employee Costs,Shared IT Services Pay Group,Basic Pay,19/08/2015,134252,293.85,ADECCO RECRUITMENT,A00188,6,2015
Allerdale Borough Council,15550,Supplies & Services,Out of Hours Telephones,General-Service Related Fees,29/07/2015,134253,675.8,ORBIS PROTECT LTD (PREV SITEXORBIS LIMITED),A00679,6,2015
Allerdale Borough Council,15550,Supplies & Services,Out of Hours Telephones,General-Service Related Fees,29/07/2015,134254,26.4,ORBIS PROTECT LTD (PREV SITEXORBIS LIMITED),A00679,6,2015
Allerdale Borough Council,16150,Supplies & Services,Town Centre Management,General Promotions,30/07/2015,134255,100.4,STEVES PAINT LTD,A00119,6,2015
Allerdale Borough Council,16150,Supplies & Services,Town Centre Management,General Promotions,30/07/2015,134256,66.57,STEVES PAINT LTD,A00119,6,2015
Allerdale Borough Council,12201,Premises,Corporate Property Maintenance,Internal Maintenance,16/08/2015,134257,580,ROBERT SCOTT LTD,X00160,6,2015
Allerdale Borough Council,12309,Premises,Corporate Property Maintenance,Fire and Safety,24/08/2015,134258,93.47,CUMBRIAN SYSTEMS,C00062,6,2015
Allerdale Borough Council,16350,Supplies & Services,Chief Executive,Miscellaneous Expenses,15/08/2015,134265,979,BARCLAYCARD COMMERCIAL ,X00207,6,2015
Allerdale Borough Council,15506,Supplies & Services,Communications and Marketing,Professional Services,30/07/2015,134275,2025,ELSWORTH COMMUNICATIONS,A01869,6,2015
Allerdale Borough Council,15101,Supplies & Services,Street Cleansing,Equipment Costs,17/06/2015,134276,739.5,PLASTIC OMNIUM URBAN SYSTEMS LTD,A00159,6,2015
Allerdale Borough Council,52106,Capital Expenditure,New Leisure Facility,Consultants Fees (Capital),31/08/2015,134277,5850.32,PICK EVERARD,A02007,6,2015
Allerdale Borough Council,20301,Third Party Payments,Parks and Grounds Maintenance,Contract Services-Parks & Open Spaces,28/08/2015,134278,95681,ISS WATERERS LANDSCAPE,C00044,6,2015
Allerdale Borough Council,15101,Supplies & Services,Public Building Cleaning,Equipment Costs,21/08/2015,134279,31.8,INSTOCK (CHANDLERS),A00050,6,2015
Allerdale Borough Council,12408,Premises,Public Convenience Cleaning,Water & Sewage,20/08/2015,134280,13.12,UNITED UTILITIES ,X00011,6,2015
Allerdale Borough Council,10110,Employee Costs,Chief Executive,Salary Sacrifice,01/09/2015,134281,1344.01,TUSKERDIRECT LTD,A02186,6,2015
Allerdale Borough Council,31104,Income,BEC Social Investment Fund,Contribution from Other Organisations,01/09/2015,134282,25000,LORTON VILLAGE HALL,M00790,6,2015
Allerdale Borough Council,10401,Employee Costs,Customer Services Pay Group,Agency Staff Costs,12/08/2015,134283,493.58,ADECCO RECRUITMENT,A00188,6,2015
Allerdale Borough Council,15402,Supplies & Services,Customer Services Pay Group,Photocopier Charges,13/08/2015,134284,10.4,RICOH UK LTD,A00037,6,2015
Allerdale Borough Council,20150,Third Party Payments,Building Control - Non-Chargeable,General Partnership Service Fees,17/08/2015,134285,50,T ARMSTRONG - CONSTRUCTION,C00003,6,2015
Allerdale Borough Council,10401,Employee Costs,Customer Services Pay Group,Agency Staff Costs,19/08/2015,134286,493.58,ADECCO RECRUITMENT,A00188,6,2015
Allerdale Borough Council,15510,Supplies & Services,Confidential Waste,Disposal of Waste,25/08/2015,134287,291,J DUFFY LTD T/A PW CONF BUS SERVICES,A01846,6,2015
Allerdale Borough Council,15803,Supplies & Services,IT Services,Hardware Purchase,24/08/2015,134288,626.15,MISCO,A00125,6,2015
Allerdale Borough Council,16150,Supplies & Services,Solway Wetlands Project,General Promotions,20/08/2015,134289,250,STEVE BLAKE PHOTOGRAPHY,A01930,6,2015
Allerdale Borough Council,15101,Supplies & Services,Public Building Cleaning,Equipment Costs,18/08/2015,134290,223.36,WF HYGIENE & CLEANING SUPPLIES,A01794,6,2015
Allerdale Borough Council,15101,Supplies & Services,Public Building Cleaning,Equipment Costs,11/08/2015,134291,195.98,WF HYGIENE & CLEANING SUPPLIES,A01794,6,2015
Allerdale Borough Council,15506,Supplies & Services,Food and Occupational Health,Professional Services,12/08/2015,134292,112.77,PUBLIC HEALTH ENGLAND,A01839,6,2015
Allerdale Borough Council,14101,Transport,Mayoral Services,Vehicle Leasing,13/08/2015,134293,30,ACE TAXIS,A01927,6,2015
Allerdale Borough Council,16301,Supplies & Services,KMAG Enhancement Activity,Reimbursement,28/08/2015,134294,1122,KESWICK MUSEUM & ART GALLERY,A00337,6,2015
Allerdale Borough Council,16301,Supplies & Services,KMAG Enhancement Activity,Reimbursement,28/08/2015,134295,211.2,KESWICK MUSEUM & ART GALLERY,A00337,6,2015
Allerdale Borough Council,15506,Supplies & Services,KMAG Enhancement Activity,Professional Services,29/08/2015,134296,111.7,Redacted information - included personal information ,A02216,6,2015
Allerdale Borough Council,15506,Supplies & Services,KMAG Enhancement Activity,Professional Services,21/08/2015,134297,90,UNICORN CREATIVE,A02132,6,2015
Allerdale Borough Council,16150,Supplies & Services,KMAG Enhancement Activity,General Promotions,21/08/2015,134298,232.5,UNICORN CREATIVE,A02132,6,2015
Allerdale Borough Council,21150,Transfer Payments,Festivals & Events,General Grants,17/08/2015,134299,3000,SOUNDWAVE,A00998,6,2015
Allerdale Borough Council,15100,Supplies & Services,Street Cleansing,"Budget-Equipment, Furniture & Materials",01/09/2015,134300,1875,PMC POLYTHENE LTD,A00194,6,2015
Allerdale Borough Council,14101,Transport,Recycling,Vehicle Leasing,01/09/2015,134301,3015,DOBIES VAUXHALL,A00254,6,2015
Allerdale Borough Council,14101,Transport,Trade Waste,Vehicle Leasing,01/09/2015,134302,3015,DOBIES VAUXHALL,A00254,6,2015
Allerdale Borough Council,14101,Transport,Domestic Waste,Vehicle Leasing,01/09/2015,134303,3015,DOBIES VAUXHALL,A00254,6,2015
Allerdale Borough Council,14101,Transport,Street Cleansing,Vehicle Leasing,01/09/2015,134304,3015,DOBIES VAUXHALL,A00254,6,2015
Allerdale Borough Council,15506,Supplies & Services,Legal Services,Professional Services,26/08/2015,134305,40,BURNETTS SOLICITORS,A00129,6,2015
Allerdale Borough Council,15506,Supplies & Services,Legal Services,Professional Services,25/08/2015,134306,1006,BURNETTS SOLICITORS,A00129,6,2015
Allerdale Borough Council,15501,Supplies & Services,Economic Growth Priorities,Consultants Fees,07/08/2015,134307,5200,BIZCAT UK LIMITED,A02214,6,2015
Allerdale Borough Council,16003,Supplies & Services,Customer Services Pay Group,Security of Cash Movements,01/09/2015,134308,469.51,SECURITY PLUS LIMITED,A00503,6,2015
Allerdale Borough Council,14104,Transport,Public Convenience Cleaning,Repairs & Maintenance,19/08/2015,134309,139.17,GOODFELLOW & SONS,A00031,6,2015
Allerdale Borough Council,15508,Supplies & Services,Bereavement Services,Subscriptions,10/04/2015,134310,310,INSTITUTE OF CEMETERY & CREMATORIUM MANAGEMENT,A00958,6,2015
Allerdale Borough Council,16150,Supplies & Services,Town Centre Management,General Promotions,02/09/2015,134311,3000,Redacted information - included personal information ,M00601,6,2015
Allerdale Borough Council,16102,Supplies & Services,Markets Service Development,Regeneration Initiatives,02/09/2015,134312,2000,Redacted information - included personal information ,M00601,6,2015
Allerdale Borough Council,15502,Supplies & Services,Legal Services,Land Registry Fees,01/09/2015,134313,36,HM LAND REGISTRY ,A00505,6,2015
Allerdale Borough Council,10601,Employee Costs,Human Resources Pay Group,External Courses & Seminar Fees,15/08/2015,134314,991,BARCLAYCARD COMMERCIAL ,X00207,6,2015
Allerdale Borough Council,10601,Employee Costs,Training,External Courses & Seminar Fees,11/08/2015,134315,225,CHARTERED INSTITUTE OF HOUSING,A01952,6,2015
Allerdale Borough Council,10601,Employee Costs,Training,External Courses & Seminar Fees,11/08/2015,134316,400,CUMBRIA CC ,A00066,6,2015
Allerdale Borough Council,10202,Employee Costs,Human Resources Pay Group,Medical Screening,13/08/2015,134317,424.36,WELLWORK LTD,A00029,6,2015
Allerdale Borough Council,10501,Employee Costs,Corporate Recruitment,Advertising Vacancies,06/08/2015,134318,867.72,CUMBRIA CC - 3C STUDIO,A00070,6,2015
Allerdale Borough Council,10101,Employee Costs,Shared IT Services Pay Group,Basic Pay,07/08/2015,134319,1860,COMPUTER FUTURES,A02193,6,2015
Allerdale Borough Council,10101,Employee Costs,Shared IT Services Pay Group,Basic Pay,22/07/2015,134320,2062.5,COMPUTER FUTURES,A02193,6,2015
Allerdale Borough Council,14101,Transport,Shared IT Services Pay Group,Vehicle Leasing,12/09/2015,134321,199,ARNOLD CLARK FINANCE LIMITED,A01781,6,2015
Allerdale Borough Council,15506,Supplies & Services,Communications and Marketing,Professional Services,08/08/2015,134322,340,LAKES PR LIMITED,A01912,6,2015
Allerdale Borough Council,10101,Employee Costs,Shared IT Services Pay Group,Basic Pay,14/08/2015,134323,2100,COMPUTER FUTURES,A02193,6,2015
Allerdale Borough Council,15506,Supplies & Services,Legal Services,Professional Services,24/08/2015,134324,1000,KINGS CHAMBERS,A00348,6,2015
Allerdale Borough Council,15404,Supplies & Services,Legal Services,Reference Materials,26/08/2015,134325,284,SWEET & MAXWELL (THOMSON REUTERS),A00028,6,2015
Allerdale Borough Council,10101,Employee Costs,Shared IT Services Pay Group,Basic Pay,21/08/2015,134326,2250,COMPUTER FUTURES,A02193,6,2015
Allerdale Borough Council,15301,Supplies & Services,Parking Services Pay Group,Uniforms,17/08/2015,134327,108,THOMAS ARMSTRONG - LINDEN/KAYTOOLS,A00091,6,2015
Allerdale Borough Council,15103,Supplies & Services,Off-street - Owned,Purchase of Materials,18/08/2015,134328,1749.6,AMCOR FLEXIBLES CUMBRIA,A00467,6,2015
Allerdale Borough Council,15501,Supplies & Services,Planning and Development,Consultants Fees,24/08/2015,134329,255,CAPITA (TREE/HEDGEROWS),A00683,6,2015
Allerdale Borough Council,15301,Supplies & Services,Parking Services Pay Group,Uniforms,19/08/2015,134330,29.95,KELTIC,A00017,6,2015
Allerdale Borough Council,15601,Supplies & Services,Benefits,Postage,20/08/2015,134331,1393.69,ROYAL MAIL LETTERS,X00021,6,2015
Allerdale Borough Council,35106,Income,Homelessness,Dwellings Income,24/08/2015,134332,255.36,ALLERDALE,A00342,6,2015
Allerdale Borough Council,15704,Supplies & Services,IT Services,Mobile Phones,24/08/2015,134333,1143.47,VODAFONE,A00551,6,2015
Allerdale Borough Council,12408,Premises,Public Convenience Cleaning,Water & Sewage,25/08/2015,134334,45.94,UNITED UTILITIES ,X00011,6,2015
Allerdale Borough Council,12408,Premises,Corporate Property Maintenance,Water & Sewage,25/08/2015,134335,148.14,UNITED UTILITIES ,X00011,6,2015
Allerdale Borough Council,12408,Premises,Public Convenience Cleaning,Water & Sewage,25/08/2015,134336,34.88,UNITED UTILITIES ,X00011,6,2015
Allerdale Borough Council,12408,Premises,Corporate Property Maintenance,Water & Sewage,25/08/2015,134337,32.81,UNITED UTILITIES ,X00011,6,2015
Allerdale Borough Council,15703,Supplies & Services,IT Services,Call Charges,26/08/2015,134338,851.23,VODAFONE (PREV CABLE & WIRELESS),A00934,6,2015
Allerdale Borough Council,15506,Supplies & Services,IT - New Initiatives,Professional Services,26/05/2015,134339,1970,CIVICA UK LIMITED,A00006,6,2015
Allerdale Borough Council,15101,Supplies & Services,Public Building Cleaning,Equipment Costs,26/08/2015,134340,43.47,ARCO LIMITED,A00045,6,2015
Allerdale Borough Council,15101,Supplies & Services,Public Building Cleaning,Equipment Costs,26/08/2015,134341,14.4,ARCO LIMITED ,A00045,6,2015
Allerdale Borough Council,16150,Supplies & Services,Solway Wetlands Project,General Promotions,17/08/2015,134342,155.99,Redacted information - included personal information ,M00608,6,2015
Allerdale Borough Council,54105,Capital Expenditure,Cluster of Empty Homes,Grants  Private Individuals (Capital),09/09/2015,134343,5000,Redacted information - included personal information ,X00240,6,2015
Allerdale Borough Council,33113,Income,Building Control - Chargeable,Building Control Fees Income,07/09/2015,134344,134.28,Redacted information - included personal information ,M00791,6,2015
Allerdale Borough Council,54105,Capital Expenditure,Disabled Facilities Grants,Grants  Private Individuals (Capital),09/09/2015,134345,11821.5,BLUE FLAME SERVICES LTD,X00213,6,2015
Allerdale Borough Council,54105,Capital Expenditure,Disabled Facilities Grants,Grants  Private Individuals (Capital),09/09/2015,134346,2772,JOSEPH RIDLEY BUILDERS LTD,X00124,6,2015
Allerdale Borough Council,16350,Supplies & Services,Homelessness,Miscellaneous Expenses,03/09/2015,134347,475,ID PROPERTIES,M00259,6,2015
Allerdale Borough Council,21150,Transfer Payments,New Leisure Facility,General Grants,04/09/2015,134348,5375,FCC RECYCLING UK LTD ,M00792,6,2015
Allerdale Borough Council,15502,Supplies & Services,Legal Services,Land Registry Fees,07/09/2015,134349,51,HM LAND REGISTRY ,A00505,6,2015
Allerdale Borough Council,15812,Supplies & Services,IT Services,Software Development,15/08/2015,134350,948.51,BARCLAYCARD COMMERCIAL,X00207,6,2015
Allerdale Borough Council,15506,Supplies & Services,Environmental Health Pay Group,Professional Services,21/08/2015,134351,270,Redacted information - included personal information ,A01969,6,2015
Allerdale Borough Council,20150,Third Party Payments,Footways,General Partnership Service Fees,20/08/2015,134352,926,ELECTRICITY NORTH WEST LTD,A00471,6,2015
Allerdale Borough Council,20150,Third Party Payments,Footways,General Partnership Service Fees,21/08/2015,134353,926,ELECTRICITY NORTH WEST LTD,A00471,6,2015
Allerdale Borough Council,15303,Supplies & Services,Food and Occupational Health,Laundry,22/08/2015,134354,76.76,BERENDSEN UK LTD,A00027,6,2015
Allerdale Borough Council,15400,Supplies & Services,Benefits,"Budget-Printing,Stationery & Office Supp",27/08/2015,134355,1700,FIRPRESS PRINTERS,A00063,6,2015
Allerdale Borough Council,15100,Supplies & Services,Benefits,"Budget-Equipment, Furniture & Materials",27/08/2015,134356,540,FIRPRESS PRINTERS,A00063,6,2015
Allerdale Borough Council,10101,Employee Costs,Shared IT Services Pay Group,Basic Pay,26/08/2015,134357,297.12,ADECCO RECRUITMENT,A00188,6,2015
Allerdale Borough Council,15506,Supplies & Services,Environmental Protection,Professional Services,26/08/2015,134358,442.6,UNITED UTILITIES PLC,A01657,6,2015
Allerdale Borough Council,12101,Premises,Corporate Property Maintenance,External Maintenance & Decoration,25/08/2015,134359,34.61,AST SIGNS LIMITED,A01473,6,2015
Allerdale Borough Council,15403,Supplies & Services,Chief Executive,Publications and Periodicals,29/08/2015,134360,9.9,P & D NEWSAGENTS,A00237,6,2015
Allerdale Borough Council,12302,Premises,Solway Coast AONB Core Funding,Building Cleaning,31/08/2015,134361,94.58,ORIAN SOLUTIONS LTD,A01814,6,2015
Allerdale Borough Council,15506,Supplies & Services,Environmental Protection,Professional Services,27/08/2015,134362,975,HOARE LEA AND PARTNERS,A02212,6,2015
Allerdale Borough Council,16150,Supplies & Services,Solway Wetlands Project,General Promotions,28/08/2015,134363,88.32,YORKSHIRE PURCHASING ORGANISATION,A00747,6,2015
Allerdale Borough Council,15101,Supplies & Services,Homelessness,Equipment Costs,03/09/2015,134364,139.95,THE LAUNDRY STUDIO,A00225,6,2015
Allerdale Borough Council,15101,Supplies & Services,Homelessness,Equipment Costs,03/09/2015,134365,48.95,THE LAUNDRY STUDIO,A00225,6,2015
Allerdale Borough Council,15101,Supplies & Services,Homelessness,Equipment Costs,03/09/2015,134366,50.85,THE LAUNDRY STUDIO,A00225,6,2015
Allerdale Borough Council,15101,Supplies & Services,Homelessness,Equipment Costs,03/09/2015,134367,69.45,THE LAUNDRY STUDIO,A00225,6,2015
Allerdale Borough Council,15501,Supplies & Services,Homelessness,Consultants Fees,19/08/2015,134368,25,BRAMPTON MEDICAL PRACTICE,A02230,6,2015
Allerdale Borough Council,15405,Supplies & Services,Members Services,Use of External Printers,27/08/2015,134369,24,FIRPRESS PRINTERS,A00063,6,2015
Allerdale Borough Council,15501,Supplies & Services,Economic Growth Priorities,Consultants Fees,03/09/2015,134370,7800,BIZCAT UK LIMITED,A02214,6,2015
Allerdale Borough Council,15506,Supplies & Services,Legal Services,Professional Services,11/08/2015,134371,380,BURNETTS SOLICITORS,A00129,6,2015
Allerdale Borough Council,10600,Employee Costs,Parking Services Pay Group,Budget-Training,28/07/2015,134372,2875,ALPHA PARKING LTD,A00829,6,2015
Allerdale Borough Council,15506,Supplies & Services,Legal Services,Professional Services,25/08/2015,134373,330,FREETH CARTWRIGHT LLP,A01821,6,2015
Allerdale Borough Council,16302,Supplies & Services,Arts Development,Room Hire,14/07/2015,134374,8,SOLWAY PLAIN FUTURES LTD,A01194,6,2015
Allerdale Borough Council,51101,Capital Expenditure,New Leisure Facility,External Contractor Payments (Capital),04/09/2015,134375,500403,WILLMOTT DIXON CAPITAL WORKS LTD,C00127,6,2015
Allerdale Borough Council,20305,Third Party Payments,Maryport Wave,Contract Services-Leisure Centres,03/09/2015,134376,63223.5,GREENWICH LEISURE LTD (PREV CARLISLE LEISURE),A00136,6,2015
Allerdale Borough Council,16150,Supplies & Services,Solway Wetlands Project,General Promotions,04/09/2015,134377,41.2,THE BAG N BOX MAN LTD,A02229,6,2015
Allerdale Borough Council,12201,Premises,Public Convenience Cleaning,Internal Maintenance,05/09/2015,134378,700,NORTH WEST LAKES PROPERTY CLEANING,C00159,6,2015
Allerdale Borough Council,12201,Premises,Public Convenience Cleaning,Internal Maintenance,05/09/2015,134379,1700,NORTH WEST LAKES PROPERTY CLEANING,C00159,6,2015
Allerdale Borough Council,15803,Supplies & Services,IT Services,Hardware Purchase,15/07/2015,134380,48.83,MISCO,A00125,6,2015
Allerdale Borough Council,15805,Supplies & Services,IT Services,Computer Network,23/06/2015,134381,696,CONNEXIONS GROUP LTD,C00060,6,2015
Allerdale Borough Council,12403,Premises,Homelessness,Gas,02/09/2015,134382,53,MEPOS LIMITED,A01286,6,2015
Allerdale Borough Council,16150,Supplies & Services,Solway Wetlands Project,General Promotions,18/08/2015,134384,114.74,Redacted information - included personal information ,M00643,6,2015
Allerdale Borough Council,15502,Supplies & Services,Legal Services,Land Registry Fees,14/09/2015,134385,73,HM LAND REGISTRY,A00505,6,2015
Allerdale Borough Council,15810,Supplies & Services,IT Services,Software Licences,20/08/2015,134386,4084,DOTTED EYES LTD,A00323,6,2015
Allerdale Borough Council,15507,Supplies & Services,Shared Revs & Bens,Searches,03/08/2015,134387,61677,CARLISLE CITY COUNCIL,A00161,6,2015
Allerdale Borough Council,15506,Supplies & Services,Communications and Marketing,Professional Services,30/08/2015,134388,2125,ELSWORTH COMMUNICATIONS,A01869,6,2015
Allerdale Borough Council,12305,Premises,Corporate Property Maintenance,Inspections and Services,04/09/2015,134389,68.25,BORDER FOOD MACHINERY,A00388,6,2015
Allerdale Borough Council,12201,Premises,Corporate Property Maintenance,Internal Maintenance,05/09/2015,134390,375,AA CARPETS LTD,C00031,6,2015
Allerdale Borough Council,14150,Transport,Gates Travel,General-Council Vehicles (Non-Capital),31/08/2015,134391,2541.6,GATES TRAVEL,A01525,6,2015
Allerdale Borough Council,15101,Supplies & Services,Public Convenience Cleaning,Equipment Costs,24/08/2015,134392,404.64,WF HYGIENE & CLEANING SUPPLIES,A01794,6,2015
Allerdale Borough Council,12101,Premises,Car Parks Inspection & Maintenance,External Maintenance & Decoration,31/08/2015,134393,465,ASHCROFT PLANT (CUMBRIA) LTD,C00018,6,2015
Allerdale Borough Council,73102,Holding and Control Accounts,Busy Bees Childcare Scheme,Holding Accounts General - Expenditure,08/09/2015,134394,75.02,COMPUTERSHARE VOUCHER SERVICES,A00991,6,2015
Allerdale Borough Council,73102,Holding and Control Accounts,Busy Bees Childcare Scheme,Holding Accounts General - Expenditure,08/09/2015,134395,1364,COMPUTERSHARE VOUCHER SERVICES,A00991,6,2015
Allerdale Borough Council,16150,Supplies & Services,Solway AONB Other Projects,General Promotions,08/09/2015,134396,200,MICHAELA CORRIE GRAPHIC DESIGN,A00513,6,2015
Allerdale Borough Council,16102,Supplies & Services,Town Centre Management,Regeneration Initiatives,09/09/2015,134397,40,POD (NORTH WEST) LIMITED,A01977,6,2015
Allerdale Borough Council,15501,Supplies & Services,Corporate Management,Consultants Fees,03/08/2015,134398,286.55,GABY PORTER & ASSOCIATES,A02177,6,2015
Allerdale Borough Council,12203,Premises,Public Convenience Cleaning,Plumbing and Heating Maintenance,07/09/2015,134399,1023,Redacted information - included personal information ,C00008,6,2015
Allerdale Borough Council,16350,Supplies & Services,Planning Policy,Miscellaneous Expenses,26/08/2015,134400,20,COCKERMOUTH TOWN COUNCIL,A00586,6,2015
Allerdale Borough Council,16150,Supplies & Services,Town Centre Management,General Promotions,15/09/2015,134401,1350,Redacted information - included personal information ,M00601,6,2015
Allerdale Borough Council,54105,Capital Expenditure,Disabled Facilities Grants,Grants  Private Individuals (Capital),14/09/2015,134402,3750,DOLPHIN STAIRLIFTS CUMBRIA,X00107,6,2015
Allerdale Borough Council,54105,Capital Expenditure,Cluster of Empty Homes,Grants  Private Individuals (Capital),14/09/2015,134403,7211.5,Redacted information - included personal information ,X00241,6,2015
Allerdale Borough Council,12301,Premises,Corporate Property Maintenance,Security,28/08/2015,134404,-182,ADT FIRE & SECURITY PLC,C00035,6,2015
Allerdale Borough Council,15804,Supplies & Services,IT Services,Computer Data Lines B.T.,21/07/2015,134405,159.67,BRITISH TELECOMMUNICATIONS,X00004,6,2015
Allerdale Borough Council,15804,Supplies & Services,IT Services,Computer Data Lines B.T.,01/09/2015,134406,1642.21,VODAFONE (PREV CABLE & WIRELESS),A00934,6,2015
Allerdale Borough Council,12408,Premises,Homelessness,Water & Sewage,28/08/2015,134407,195.93,UNITED UTILITIES ,X00011,6,2015
Allerdale Borough Council,12408,Premises,Homelessness,Water & Sewage,28/08/2015,134408,159.76,UNITED UTILITIES ,X00011,6,2015
Allerdale Borough Council,12403,Premises,Corporate Property Maintenance,Gas,02/09/2015,134409,12,EON,X00016,6,2015
Allerdale Borough Council,12408,Premises,Homelessness,Water & Sewage,28/08/2015,134410,252.04,UNITED UTILITIES,X00011,6,2015
Allerdale Borough Council,12408,Premises,Homelessness,Water & Sewage,28/08/2015,134411,134.82,UNITED UTILITIES,X00011,6,2015
Allerdale Borough Council,12408,Premises,Homelessness,Water & Sewage,28/08/2015,134412,232.09,UNITED UTILITIES,X00011,6,2015
Allerdale Borough Council,12408,Premises,Public Convenience Cleaning,Water & Sewage,03/09/2015,134413,46.45,UNITED UTILITIES,X00011,6,2015
Allerdale Borough Council,12402,Premises,Car Parks Inspection & Maintenance,Electricity,05/09/2015,134414,85.33,N POWER,X00015,6,2015
Allerdale Borough Council,12402,Premises,Corporate Property Maintenance,Electricity,04/09/2015,134415,446.96,N POWER ,X00015,6,2015
Allerdale Borough Council,15506,Supplies & Services,KMAG Enhancement Activity,Professional Services,03/08/2015,134416,252.05,Redacted information - included personal information ,A02055,6,2015
Allerdale Borough Council,32104,Income,Off-street - Owned,Equipment Income,26/08/2015,134417,3526.16,GRONTMIJ LIMITED,A02205,6,2015
Allerdale Borough Council,16101,Supplies & Services,Planning and Development,Statutory Notices,26/08/2015,134418,504.41,CUMBRIA CC - 3C STUDIO,A00070,6,2015
Allerdale Borough Council,15501,Supplies & Services,Planning Policy,Consultants Fees,27/08/2015,134419,4654,WYG ENVIRONMENT PLANNING TRANSPORT LTD,A01785,6,2015
Allerdale Borough Council,15101,Supplies & Services,Corporate Property Maintenance,Equipment Costs,29/08/2015,134420,163.2,TELK LTD,A01670,6,2015
Allerdale Borough Council,15514,Supplies & Services,Mayor's Fund,Public Entertainment,29/08/2015,134421,9.9,P & D NEWSAGENTS,A00237,6,2015
Allerdale Borough Council,16150,Supplies & Services,Solway Wetlands Project,General Promotions,24/08/2015,134422,15.9,FINDEL EDUCATION LTD,A01767,6,2015
Allerdale Borough Council,16150,Supplies & Services,Solway Wetlands Project,General Promotions,07/09/2015,134423,200,ROBERT SKELTON CONTRACTORS TD,A02228,6,2015
Allerdale Borough Council,15811,Supplies & Services,Parking Services Pay Group,Software Maintenance,28/08/2015,134424,57.97,RELIANCE HIGH-TECH LTD,C00123,6,2015
Allerdale Borough Council,12301,Premises,Corporate Property Maintenance,Security,20/07/2015,134425,403.43,ADT FIRE & SECURITY PLC,C00035,6,2015
Allerdale Borough Council,20111,Third Party Payments,Localities & Partnerships,Voluntary Organisations,15/09/2015,134426,631,ASPATRIA RURAL GROUP,M00454,6,2015
Allerdale Borough Council,15506,Supplies & Services,Food and Occupational Health,Professional Services,19/08/2015,134427,235,MP MARINE LTD,A00113,6,2015
Allerdale Borough Council,15500,Supplies & Services,Economic Regeneration,Budget-Services,10/09/2015,134428,665,SUFFOLK COUNTY COUNCIL,A00980,6,2015
Allerdale Borough Council,15101,Supplies & Services,Recycling,Equipment Costs,27/08/2015,134429,100,FIRPRESS PRINTERS,A00063,6,2015
Allerdale Borough Council,15101,Supplies & Services,Recycling,Equipment Costs,07/09/2015,134430,60,FIRPRESS PRINTERS,A00063,6,2015
Allerdale Borough Council,15101,Supplies & Services,Domestic Waste,Equipment Costs,02/09/2015,134431,3654,PLASTIC OMNIUM URBAN SYSTEMS LTD,A00159,6,2015
Allerdale Borough Council,15101,Supplies & Services,Domestic Waste,Equipment Costs,08/09/2015,134432,8330,PLASTIC OMNIUM URBAN SYSTEMS LTD,A00159,6,2015
Allerdale Borough Council,15101,Supplies & Services,Recycling,Equipment Costs,07/09/2015,134433,105,FIRPRESS PRINTERS,A00063,6,2015
Allerdale Borough Council,15101,Supplies & Services,Recycling,Equipment Costs,27/08/2015,134434,87,FIRPRESS PRINTERS,A00063,6,2015
Allerdale Borough Council,14105,Transport,Animal Welfare,"Fuel, Lubricants & Consumables",28/08/2015,134435,9.4,HI-Q TYRESERVICES,A00313,6,2015
Allerdale Borough Council,15101,Supplies & Services,Public Convenience Cleaning,Equipment Costs,10/09/2015,134436,706.5,INSTOCK (CHANDLERS),A00050,6,2015
Allerdale Borough Council,15808,Supplies & Services,Multi-functional Printers,Computer Consumables,01/07/2015,134437,259.45,ANTALIS LIMITED,A00122,6,2015
Allerdale Borough Council,15808,Supplies & Services,Multi-functional Printers,Computer Consumables,24/07/2015,134438,199,ANTALIS LIMITED,A00122,6,2015
Allerdale Borough Council,15506,Supplies & Services,Allerdale Investment Partnership,Professional Services,25/08/2015,134439,163.5,FREETH CARTWRIGHT LLP,A01821,6,2015
Allerdale Borough Council,12203,Premises,Public Convenience Cleaning,Plumbing and Heating Maintenance,14/09/2015,134440,504,Redacted information - included personal information ,C00008,6,2015
Allerdale Borough Council,12101,Premises,Corporate Property Maintenance,External Maintenance & Decoration,09/09/2015,134441,140,UNBLOCK CUMBRIA LTD,C00005,6,2015
Allerdale Borough Council,15401,Supplies & Services,Building Control - Chargeable,General Stationery,11/09/2015,134442,25.22,HEATONS OFFICE SOLUTION (PREV LAKELAND/INTEGRITY),A00069,6,2015
Allerdale Borough Council,15401,Supplies & Services,Planning and Development,General Stationery,11/09/2015,134443,32.73,HEATONS OFFICE SOLUTION (PREV LAKELAND/INTEGRITY),A00069,6,2015
Allerdale Borough Council,10401,Employee Costs,IT - New Initiatives,Agency Staff Costs,03/08/2015,134444,975,HAYS SPECIALIST RECRUITMENT LTD,A00280,6,2015
Allerdale Borough Council,10401,Employee Costs,IT - New Initiatives,Agency Staff Costs,10/08/2015,134445,975,HAYS SPECIALIST RECRUITMENT LTD,A00280,6,2015
Allerdale Borough Council,10401,Employee Costs,IT - New Initiatives,Agency Staff Costs,14/08/2015,134446,650,HAYS SPECIALIST RECRUITMENT LTD,A00280,6,2015
Allerdale Borough Council,10401,Employee Costs,IT - New Initiatives,Agency Staff Costs,24/08/2015,134447,975,HAYS SPECIALIST RECRUITMENT LTD,A00280,6,2015
Allerdale Borough Council,10401,Employee Costs,IT - New Initiatives,Agency Staff Costs,01/09/2015,134448,812.5,HAYS SPECIALIST RECRUITMENT LTD,A00280,6,2015
Allerdale Borough Council,10401,Employee Costs,IT - New Initiatives,Agency Staff Costs,07/09/2015,134449,812.5,HAYS SPECIALIST RECRUITMENT LTD,A00280,6,2015
Allerdale Borough Council,14105,Transport,Solway Coast AONB Core Funding,"Fuel, Lubricants & Consumables",31/07/2015,134450,412.35,BP OIL UK LTD,X00022,6,2015
Allerdale Borough Council,14105,Transport,Parking Services Pay Group,"Fuel, Lubricants & Consumables",11/08/2015,134451,658.99,BP OIL UK LTD ,X00022,6,2015
Allerdale Borough Council,15201,Supplies & Services,Leaders Services,Entertainment Of Visitors,15/07/2015,134452,48.43,BARCLAYCARD COMMERCIAL ,X00207,6,2015
Allerdale Borough Council,14105,Transport,Parking Services Pay Group,"Fuel, Lubricants & Consumables",18/08/2015,134453,443.99,BP OIL UK LTD,X00022,6,2015
Allerdale Borough Council,14105,Transport,Parking Services Pay Group,"Fuel, Lubricants & Consumables",25/08/2015,134454,351.66,BP OIL UK LTD,X00022,6,2015
Allerdale Borough Council,15506,Supplies & Services,Revs & Bens Transformation Project,Professional Services,10/08/2015,134455,2650,CAPACITYGRID T/A LIBERATA UK LTD,C00122,6,2015
Allerdale Borough Council,15812,Supplies & Services,Revs & Bens Transformation Project,Software Development,10/08/2015,134456,14000,CAPACITYGRID T/A LIBERATA UK LTD,C00122,6,2015
Allerdale Borough Council,15100,Supplies & Services,Animal Welfare,"Budget-Equipment, Furniture & Materials",10/09/2015,134457,1400,BROXAP LIMITED,C00048,6,2015
Allerdale Borough Council,20108,Third Party Payments,Corporate Management,Audit Fees,04/09/2015,134458,12032,GRANT THORNTON UK LLP,A01736,6,2015
Allerdale Borough Council,15501,Supplies & Services,Building Control - Chargeable,Consultants Fees,14/09/2015,134459,46,PK ELECTRICAL (CARLISLE) LTD,A00778,6,2015
Allerdale Borough Council,16150,Supplies & Services,Solway Wetlands Project,General Promotions,07/09/2015,134460,185,Redacted information - included personal information ,A02224,6,2015
Allerdale Borough Council,15501,Supplies & Services,Building Control - Chargeable,Consultants Fees,14/09/2015,134461,46,PK ELECTRICAL (CARLISLE) LTD,A00778,6,2015
Allerdale Borough Council,15501,Supplies & Services,Housing Strategic Function,Consultants Fees,26/06/2015,134462,50,SILLOTH GROUP MEDICAL PRACTICE,A01392,6,2015
Allerdale Borough Council,73102,Holding and Control Accounts,Workington Hall Repairs,Holding Accounts General - Expenditure,31/08/2015,134463,8430,MOSEDALE GILLATT,A01020,6,2015
Allerdale Borough Council,12307,Premises,Corporate Property Maintenance,Fixtures and Fittings,08/09/2015,134464,132.03,THYSSENKRUPP ELEVATOR UK LTD,C00072,6,2015
Allerdale Borough Council,10101,Employee Costs,Shared IT Services Pay Group,Basic Pay,28/08/2015,134465,2220,COMPUTER FUTURES,A02193,6,2015
Allerdale Borough Council,10101,Employee Costs,Shared IT Services Pay Group,Basic Pay,11/09/2015,134466,2250,COMPUTER FUTURES,A02193,6,2015
Allerdale Borough Council,20301,Third Party Payments,Parks and Grounds Maintenance,Contract Services-Parks & Open Spaces,16/09/2015,134467,95681,ISS WATERERS LANDSCAPE,C00044,6,2015
Allerdale Borough Council,33150,Income,Credit Union,Other Fees Income,17/09/2015,134468,2154,THE ALLERDALE CREDIT UNION,A00493,6,2015
Allerdale Borough Council,15804,Supplies & Services,Shared ICT Costs,Computer Data Lines B.T.,01/09/2015,134469,23632.5,VODAFONE (PREV CABLE & WIRELESS),A00934,6,2015
Allerdale Borough Council,15750,Supplies & Services,Enterprise Coaches,General Telecommunications Costs,03/09/2015,134470,111.35,BRITISH TELECOMMUNICATIONS,X00004,6,2015
Allerdale Borough Council,12402,Premises,Car Parks Inspection & Maintenance,Electricity,09/09/2015,134471,44.14,N POWER,X00015,6,2015
Allerdale Borough Council,12402,Premises,Car Parks Inspection & Maintenance,Electricity,09/09/2015,134472,-294.32,N POWER,X00015,6,2015
Allerdale Borough Council,12402,Premises,Corporate Property Maintenance,Electricity,09/09/2015,134473,153.32,N POWER,X00015,6,2015
Allerdale Borough Council,12402,Premises,Corporate Property Maintenance,Electricity,09/09/2015,134474,65.16,N POWER,X00015,6,2015
Allerdale Borough Council,12402,Premises,Corporate Property Maintenance,Electricity,09/09/2015,134475,8.12,N POWER,X00015,6,2015
Allerdale Borough Council,12402,Premises,Public Convenience Cleaning,Electricity,09/09/2015,134476,28.52,N POWER,X00015,6,2015
Allerdale Borough Council,12402,Premises,Public Convenience Cleaning,Electricity,09/09/2015,134477,225.92,N POWER,X00015,6,2015
Allerdale Borough Council,12402,Premises,Public Convenience Cleaning,Electricity,09/09/2015,134478,-28.89,N POWER,X00015,6,2015
Allerdale Borough Council,12402,Premises,Public Convenience Cleaning,Electricity,09/09/2015,134479,-28.9,N POWER,X00015,6,2015
Allerdale Borough Council,12402,Premises,Public Convenience Cleaning,Electricity,09/09/2015,134480,-35.04,N POWER,X00015,6,2015
Allerdale Borough Council,12402,Premises,Corporate Property Maintenance,Electricity,09/09/2015,134481,7.47,N POWER,X00015,6,2015
Allerdale Borough Council,12402,Premises,Car Parks Inspection & Maintenance,Electricity,09/09/2015,134482,-319.11,N POWER,X00015,6,2015
Allerdale Borough Council,12402,Premises,Car Parks Inspection & Maintenance,Electricity,09/09/2015,134483,-308.48,N POWER,X00015,6,2015
Allerdale Borough Council,12402,Premises,Car Parks Inspection & Maintenance,Electricity,09/09/2015,134484,-318.77,N POWER,X00015,6,2015
Allerdale Borough Council,12402,Premises,Car Parks Inspection & Maintenance,Electricity,09/09/2015,134485,-308.36,N POWER,X00015,6,2015
Allerdale Borough Council,12402,Premises,Car Parks Inspection & Maintenance,Electricity,09/09/2015,134486,-325.87,N POWER,X00015,6,2015
Allerdale Borough Council,12402,Premises,Public Convenience Cleaning,Electricity,09/09/2015,134487,18.77,N POWER,X00015,6,2015
Allerdale Borough Council,12402,Premises,Public Convenience Cleaning,Electricity,09/09/2015,134488,-30.02,N POWER,X00015,6,2015
Allerdale Borough Council,12402,Premises,Public Convenience Cleaning,Electricity,09/09/2015,134489,-9.81,N POWER,X00015,6,2015
Allerdale Borough Council,12402,Premises,Public Convenience Cleaning,Electricity,09/09/2015,134490,-18.49,N POWER,X00015,6,2015
Allerdale Borough Council,12402,Premises,Public Convenience Cleaning,Electricity,09/09/2015,134491,4.72,N POWER,X00015,6,2015
Allerdale Borough Council,12402,Premises,Corporate Property Maintenance,Electricity,09/09/2015,134492,-89.94,N POWER,X00015,6,2015
Allerdale Borough Council,12402,Premises,Corporate Property Maintenance,Electricity,09/09/2015,134493,-193.87,N POWER,X00015,6,2015
Allerdale Borough Council,12402,Premises,Corporate Property Maintenance,Electricity,09/09/2015,134494,7.47,N POWER,X00015,6,2015
Allerdale Borough Council,12402,Premises,Public Convenience Cleaning,Electricity,09/09/2015,134495,7.47,N POWER,X00015,6,2015
Allerdale Borough Council,12402,Premises,Public Convenience Cleaning,Electricity,09/09/2015,134496,7.47,N POWER,X00015,6,2015
Allerdale Borough Council,12402,Premises,Public Convenience Cleaning,Electricity,09/09/2015,134497,2.43,N POWER,X00015,6,2015
Allerdale Borough Council,12402,Premises,Public Convenience Cleaning,Electricity,09/09/2015,134498,3.03,N POWER,X00015,6,2015
Allerdale Borough Council,12402,Premises,Public Convenience Cleaning,Electricity,09/09/2015,134499,4.71,N POWER,X00015,6,2015
Allerdale Borough Council,12403,Premises,Corporate Property Maintenance,Gas,08/09/2015,134500,59.08,BRITISH GAS,X00039,6,2015
Allerdale Borough Council,12402,Premises,Corporate Property Maintenance,Electricity,09/09/2015,134501,-414.43,N POWER,X00015,6,2015
Allerdale Borough Council,12402,Premises,Corporate Property Maintenance,Electricity,09/09/2015,134502,-153.53,N POWER,X00015,6,2015
Allerdale Borough Council,12402,Premises,Corporate Property Maintenance,Electricity,09/09/2015,134503,21.18,N POWER,X00015,6,2015
Allerdale Borough Council,12402,Premises,Corporate Property Maintenance,Electricity,09/09/2015,134504,193.87,N POWER,X00015,6,2015
Allerdale Borough Council,12402,Premises,Corporate Property Maintenance,Electricity,09/09/2015,134505,-275.87,N POWER,X00015,6,2015
Allerdale Borough Council,12402,Premises,Corporate Property Maintenance,Electricity,09/09/2015,134506,26.62,SOUTHERN ELECTRIC,X00018,6,2015
Allerdale Borough Council,15704,Supplies & Services,IT Services,Mobile Phones,24/01/2015,134507,1102.8,VODAFONE,A00551,6,2015
Allerdale Borough Council,15704,Supplies & Services,IT Services,Mobile Phones,25/07/2015,134508,1125.08,VODAFONE,A00551,6,2015
Allerdale Borough Council,12408,Premises,Corporate Property Maintenance,Water & Sewage,09/09/2015,134509,222.37,UNITED UTILITIES ,X00011,6,2015
Allerdale Borough Council,12402,Premises,Corporate Property Maintenance,Electricity,09/09/2015,134510,122.55,N POWER ,X00015,6,2015
Allerdale Borough Council,12402,Premises,Car Parks Inspection & Maintenance,Electricity,09/09/2015,134511,44.26,N POWER,X00015,6,2015
Allerdale Borough Council,12402,Premises,Car Parks Inspection & Maintenance,Electricity,09/09/2015,134512,44.17,N POWER,X00015,6,2015
Allerdale Borough Council,12402,Premises,Car Parks Inspection & Maintenance,Electricity,09/09/2015,134513,42.69,N POWER ,X00015,6,2015
Allerdale Borough Council,12402,Premises,Car Parks Inspection & Maintenance,Electricity,09/09/2015,134514,44.12,N POWER,X00015,6,2015
Allerdale Borough Council,12402,Premises,Car Parks Inspection & Maintenance,Electricity,09/09/2015,134515,42.69,N POWER,X00015,6,2015
Allerdale Borough Council,12402,Premises,Car Parks Inspection & Maintenance,Electricity,09/09/2015,134516,45.1,N POWER ,X00015,6,2015
Allerdale Borough Council,12402,Premises,Car Parks Inspection & Maintenance,Electricity,09/09/2015,134517,86.01,N POWER ,X00015,6,2015
Allerdale Borough Council,12402,Premises,Corporate Property Maintenance,Electricity,09/09/2015,134518,13.59,N POWER ,X00015,6,2015
Allerdale Borough Council,15101,Supplies & Services,Public Convenience Cleaning,Equipment Costs,15/09/2015,134519,21.6,INSTOCK (CHANDLERS),A00050,6,2015
Allerdale Borough Council,15101,Supplies & Services,Public Convenience Cleaning,Equipment Costs,16/09/2015,134520,-21.6,INSTOCK (CHANDLERS),A00050,6,2015
Allerdale Borough Council,12408,Premises,Public Convenience Cleaning,Water & Sewage,10/09/2015,134521,100.84,UNITED UTILITIES,X00011,6,2015
Allerdale Borough Council,15101,Supplies & Services,Homelessness,Equipment Costs,03/09/2015,134522,58.5,THE LAUNDRY STUDIO,A00225,6,2015
Allerdale Borough Council,12305,Premises,Corporate Property Maintenance,Inspections and Services,27/08/2015,134523,4.28,PHS GROUP LTD,C00028,6,2015
Allerdale Borough Council,12305,Premises,Corporate Property Maintenance,Inspections and Services,27/08/2015,134524,6.42,PHS GROUP LTD,C00028,6,2015
Allerdale Borough Council,12305,Premises,Corporate Property Maintenance,Inspections and Services,31/08/2015,134525,343,AQUAID (NORTH),A00123,6,2015
Allerdale Borough Council,16150,Supplies & Services,Solway Wetlands Project,General Promotions,03/09/2015,134526,80.56,FSC (FIELD STUDIES COUNCIL),A01215,6,2015
Allerdale Borough Council,15501,Supplies & Services,Revenue,Consultants Fees,22/08/2015,134527,60.14,ROSSENDALES LTD,A00964,6,2015
Allerdale Borough Council,15501,Supplies & Services,Revenue,Consultants Fees,05/09/2015,134528,75,ROSSENDALES LTD,A00964,6,2015
Allerdale Borough Council,15101,Supplies & Services,Recycling,Equipment Costs,17/08/2015,134529,7858.57,BPI RECYCLED PRODUCTS,A00318,6,2015
Allerdale Borough Council,15101,Supplies & Services,Trade Waste,Equipment Costs,14/08/2015,134530,598,IMPERIAL POLYTHENE PRODUCTS LTD,A02215,6,2015
Allerdale Borough Council,15101,Supplies & Services,Animal Welfare,Equipment Costs,10/08/2015,134531,801.65,AST SIGNS LIMITED,A01473,6,2015
Allerdale Borough Council,16150,Supplies & Services,Solway Wetlands Project,General Promotions,02/09/2015,134532,24.9,FRED ALDOUS LTD,A02226,6,2015
Allerdale Borough Council,15505,Supplies & Services,Planning and Development,Licences,31/08/2015,134533,18.02,CENTREMAPS,A00512,6,2015
Allerdale Borough Council,15803,Supplies & Services,IT Services,Hardware Purchase,10/09/2015,134534,264.37,MISCO,A00125,6,2015
Allerdale Borough Council,10601,Employee Costs,Training,External Courses & Seminar Fees,24/08/2015,134535,20,CARLISLE CITY COUNCIL,A00161,6,2015
Allerdale Borough Council,10601,Employee Costs,Solway Wetlands Project,External Courses & Seminar Fees,20/08/2015,134536,28,INSTITUTE FOR OUTDOOR LEARNING,A02075,6,2015
Allerdale Borough Council,16150,Supplies & Services,KMAG Enhancement Activity,General Promotions,21/08/2015,134537,51.04,MCKANES PRINTERS,A01507,6,2015
Allerdale Borough Council,16150,Supplies & Services,KMAG Enhancement Activity,General Promotions,28/08/2015,134538,44.66,MCKANES PRINTERS,A01507,6,2015
Allerdale Borough Council,15203,Supplies & Services,Members Services,Catering Costs and Consumables,09/09/2015,134539,251.58,KENT AND SUSSEX VENDING,A02127,6,2015
Allerdale Borough Council,10601,Employee Costs,Training,External Courses & Seminar Fees,09/09/2015,134540,60,CARLISLE CITY COUNCIL,A00161,6,2015
Allerdale Borough Council,15502,Supplies & Services,Legal Services,Land Registry Fees,21/09/2015,134541,45,HM LAND REGISTRY ,A00505,6,2015
Allerdale Borough Council,10309,Employee Costs,Pension Deficit Employer Contribution,Pension Deficit Payments,21/09/2015,134542,791300,CUMBRIA LGPS,M00626,6,2015
Allerdale Borough Council,16102,Supplies & Services,BEC Social Investment Fund,Regeneration Initiatives,18/09/2015,134543,12300,KIRKGATE ARTS,A01090,6,2015
Allerdale Borough Council,81608,Balance Sheet,General Fund,Legal Provisions,22/09/2015,134544,3856.67,Redacted information - included personal information ,M00690,6,2015
Allerdale Borough Council,15401,Supplies & Services,Document Management Pay Group,General Stationery,31/08/2015,134545,284.42,LYRECO,A00043,6,2015
Allerdale Borough Council,15501,Supplies & Services,Disposal of Allerdale Sites,Consultants Fees,20/08/2015,134546,600,Redacted information - included personal information ,A02173,6,2015
Allerdale Borough Council,10100,Employee Costs,Communications,Budget-Salaries,03/09/2015,134547,833.33,P&MM LIMITED,A02147,6,2015
Allerdale Borough Council,20101,Third Party Payments,Public Convenience Cleaning,Cleansing Contract,02/09/2015,134548,650,LINDOW HALL,A00165,6,2015
Allerdale Borough Council,15104,Supplies & Services,Bereavement Services,Supplies for Resale,30/08/2015,134549,63,GRANART,A00644,6,2015
Allerdale Borough Council,12101,Premises,Corporate Property Maintenance,External Maintenance & Decoration,13/09/2015,134550,6680,ROBERT SCOTT LTD,X00160,6,2015
Allerdale Borough Council,12303,Premises,Corporate Property Maintenance,Window Cleaning,27/08/2015,134551,450,BORDERBRITE LTD,C00155,6,2015
Allerdale Borough Council,12305,Premises,Industrial Units,Inspections and Services,26/06/2015,134552,300,WEST COAST SURVEYS LTD,A00154,6,2015
Allerdale Borough Council,12305,Premises,Corporate Property Maintenance,Inspections and Services,15/09/2015,134553,91.25,BORDER FOOD MACHINERY,A00388,6,2015
Allerdale Borough Council,12301,Premises,Corporate Property Maintenance,Security,16/09/2015,134554,81.69,CUMBRIAN SYSTEMS,C00062,6,2015
Allerdale Borough Council,0,,Parking Services Pay Group,Cost Centre Summary Only,15/09/2015,134555,67.06,FCC ENVIRONMENT SERVICES (FOCSA),A00085,6,2015
Allerdale Borough Council,15501,Supplies & Services,Estates,Consultants Fees,31/08/2015,134556,500,NPS NORTH WEST LTD,A01708,6,2015
Allerdale Borough Council,15101,Supplies & Services,Footways,Equipment Costs,31/07/2015,134557,81.19,AST SIGNS LIMITED,A01473,6,2015
Allerdale Borough Council,12305,Premises,Tenanted Properties,Inspections and Services,06/08/2015,134558,636.5,CONNEXIONS GROUP LTD,C00060,6,2015
Allerdale Borough Council,12307,Premises,Corporate Property Maintenance,Fixtures and Fittings,10/09/2015,134559,700,SHERIDAN LIFTS LIMITED,C00120,6,2015
Allerdale Borough Council,12101,Premises,Corporate Property Maintenance,External Maintenance & Decoration,15/09/2015,134560,576,JOHN ELLIOTT LIMITED,C00023,6,2015
Allerdale Borough Council,15550,Supplies & Services,Rolling Mill Project,General-Service Related Fees,31/07/2015,134561,410.81,AST SIGNS LIMITED,A01473,6,2015
Allerdale Borough Council,12203,Premises,Public Convenience Cleaning,Plumbing and Heating Maintenance,19/09/2015,134562,983,Redacted information - included personal information ,C00008,6,2015
Allerdale Borough Council,15810,Supplies & Services,Shared ICT Costs,Software Licences,17/09/2015,134563,1380,CRANFIELD UNIVERSITY,A01644,6,2015
Allerdale Borough Council,15101,Supplies & Services,Public Convenience Cleaning,Equipment Costs,14/09/2015,134564,16.56,WF HYGIENE & CLEANING SUPPLIES,A01794,6,2015
Allerdale Borough Council,16150,Supplies & Services,Solway AONB Other Projects,General Promotions,11/09/2015,134565,33,ARCO LIMITED - HEAD OFFICE HULL,A00045,6,2015
Allerdale Borough Council,20150,Third Party Payments,Footways,General Partnership Service Fees,28/08/2015,134566,525,J B FENCING,C00075,6,2015
Allerdale Borough Council,10101,Employee Costs,Shared IT Services Pay Group,Basic Pay,04/09/2015,134567,2040,COMPUTER FUTURES,A02193,6,2015
Allerdale Borough Council,20304,Third Party Payments,Recycling,Contract Services-Recycling,15/09/2015,134568,375590,FCC ENVIRONMENT SERVICES (FOCSA),A00085,6,2015
Allerdale Borough Council,15511,Supplies & Services,Street Cleansing,Removal of Vehicles,14/09/2015,134569,50,MICHAEL DOUGLAS AUTO SALVAGE,A00078,6,2015
Allerdale Borough Council,15101,Supplies & Services,Domestic Waste,Equipment Costs,14/09/2015,134570,6614.6,PLASTIC OMNIUM URBAN SYSTEMS LTD,A00159,6,2015
Allerdale Borough Council,16102,Supplies & Services,Markets Service Development,Regeneration Initiatives,17/09/2015,134571,4875,FLUID PRODUCTIONS LIMITED,A02009,6,2015
Allerdale Borough Council,10401,Employee Costs,Building Control - Chargeable,Agency Staff Costs,19/08/2015,134572,180,THE OYSTER PARTNERSHIP LTD,C00118,6,2015
Allerdale Borough Council,10401,Employee Costs,Building Control - Chargeable,Agency Staff Costs,02/09/2015,134573,180,THE OYSTER PARTNERSHIP LTD,C00118,6,2015
Allerdale Borough Council,10401,Employee Costs,Building Control - Chargeable,Agency Staff Costs,02/09/2015,134574,180,THE OYSTER PARTNERSHIP LTD,C00118,6,2015
Allerdale Borough Council,15803,Supplies & Services,IT Services,Hardware Purchase,14/09/2015,134575,133,INSIGHT DIRECT (UK) LTD,A00054,6,2015
Allerdale Borough Council,15101,Supplies & Services,Public Convenience Cleaning,Equipment Costs,07/09/2015,134576,196.56,WF HYGIENE & CLEANING SUPPLIES,A01794,6,2015
Allerdale Borough Council,10600,Employee Costs,Parking Services Pay Group,Budget-Training,18/08/2015,134577,396,WT CATERING,A02239,6,2015
Allerdale Borough Council,12301,Premises,Corporate Property Maintenance,Security,21/08/2015,134578,269.95,G4S SECURE SOLUTIONS,A01597,6,2015
Allerdale Borough Council,15102,Supplies & Services,Domestic Waste,Equipment Repair & Maintenance,01/09/2015,134579,993.6,Redacted information - included personal information ,A00176,6,2015
Allerdale Borough Council,16150,Supplies & Services,Solway Wetlands Project,General Promotions,18/09/2015,134580,400,Redacted information - included personal information ,A02028,6,2015
Allerdale Borough Council,15506,Supplies & Services,KMAG Enhancement Activity,Professional Services,12/09/2015,134581,256.42,JENNY DAYMOND ILLUSTRATION,A02222,6,2015
Allerdale Borough Council,15550,Supplies & Services,KMAG Enhancement Activity,General-Service Related Fees,11/09/2015,134582,200,HOWGILL FAMILY CENTRE,A01579,6,2015
Allerdale Borough Council,16150,Supplies & Services,Solway AONB Other Projects,General Promotions,11/09/2015,134583,435.9,THE HELPING HAND COMPANY,A00897,6,2015
Allerdale Borough Council,16150,Supplies & Services,Solway AONB Other Projects,General Promotions,10/09/2015,134584,21,CARRS BILLINGTON AGRICULTURE,A00884,6,2015
Allerdale Borough Council,12201,Premises,Corporate Property Maintenance,Internal Maintenance,24/08/2015,134585,288,BARRIE HAIGH PAINTING CONTRACTOR,A01607,6,2015
Allerdale Borough Council,10401,Employee Costs,Commissioning Support Pay Group,Agency Staff Costs,19/08/2015,134586,12000,CASH FRIDAY/LORD SEARCH & SELECTION LTD,A02108,6,2015
Allerdale Borough Council,14101,Transport,Homelessness,Vehicle Leasing,01/09/2015,134587,171.74,DOBIES VAUXHALL,A00254,6,2015
Allerdale Borough Council,15101,Supplies & Services,Public Convenience Cleaning,Equipment Costs,08/09/2015,134588,22.23,WF HYGIENE & CLEANING SUPPLIES,A01794,6,2015
Allerdale Borough Council,12408,Premises,Corporate Property Maintenance,Water & Sewage,16/09/2015,134589,244.31,UNITED UTILITIES,X00011,6,2015
Allerdale Borough Council,15101,Supplies & Services,Homelessness,Equipment Costs,03/09/2015,134590,144.45,THE LAUNDRY STUDIO,A00225,6,2015
Allerdale Borough Council,15603,Supplies & Services,Document Management Pay Group,Franking Machine Costs,01/09/2015,134591,300,THE MAILING ROOM (TMR EXECUTIVE AGENCY LTD),A00733,6,2015
Allerdale Borough Council,10401,Employee Costs,Customer Services Pay Group,Agency Staff Costs,09/09/2015,134592,393.53,ADECCO RECRUITMENT,A00188,6,2015
Allerdale Borough Council,15550,Supplies & Services,Out of Hours Telephones,General-Service Related Fees,28/08/2015,134593,13.2,ORBIS PROTECT LTD (PREV SITEXORBIS LIMITED),A00679,6,2015
Allerdale Borough Council,15550,Supplies & Services,Out of Hours Telephones,General-Service Related Fees,28/08/2015,134594,557,ORBIS PROTECT LTD (PREV SITEXORBIS LIMITED),A00679,6,2015
Allerdale Borough Council,12408,Premises,Homelessness,Water & Sewage,28/08/2015,134595,174.73,UNITED UTILITIES,X00011,6,2015
Allerdale Borough Council,35106,Income,Homelessness,Dwellings Income,09/09/2015,134596,121.38,ALLERDALE,A00342,6,2015
Allerdale Borough Council,35106,Income,Homelessness,Dwellings Income,16/09/2015,134597,100.95,ALLERDALE,A00342,6,2015
Allerdale Borough Council,35106,Income,Homelessness,Dwellings Income,16/09/2015,134598,100.65,ALLERDALE,A00342,6,2015
Allerdale Borough Council,16001,Supplies & Services,Banking and Interest,Bank Charges and Fees,31/08/2015,134599,15.25,ALLPAY.NET LIMITED,A00714,6,2015
Allerdale Borough Council,16001,Supplies & Services,Banking and Interest,Bank Charges and Fees,31/08/2015,134600,15.25,ALLPAY.NET LIMITED,A00714,6,2015
Allerdale Borough Council,16001,Supplies & Services,Banking and Interest,Bank Charges and Fees,31/08/2015,134601,19.62,ALLPAY.NET LIMITED,A00714,6,2015
Allerdale Borough Council,16001,Supplies & Services,Banking and Interest,Bank Charges and Fees,31/08/2015,134602,16.32,ALLPAY.NET LIMITED,A00714,6,2015
Allerdale Borough Council,16001,Supplies & Services,Banking and Interest,Bank Charges and Fees,31/08/2015,134603,22.56,ALLPAY.NET LIMITED,A00714,6,2015
Allerdale Borough Council,16001,Supplies & Services,Banking and Interest,Bank Charges and Fees,31/08/2015,134604,23.43,ALLPAY.NET LIMITED,A00714,6,2015
Allerdale Borough Council,16001,Supplies & Services,Banking and Interest,Bank Charges and Fees,31/08/2015,134605,26.45,ALLPAY.NET LIMITED,A00714,6,2015
Allerdale Borough Council,16001,Supplies & Services,Banking and Interest,Bank Charges and Fees,31/08/2015,134606,35.91,ALLPAY.NET LIMITED,A00714,6,2015
Allerdale Borough Council,16001,Supplies & Services,Banking and Interest,Bank Charges and Fees,31/08/2015,134607,1722.41,ALLPAY.NET LIMITED,A00714,6,2015
Allerdale Borough Council,16001,Supplies & Services,Banking and Interest,Bank Charges and Fees,31/08/2015,134608,68.07,ALLPAY.NET LIMITED,A00714,6,2015
Allerdale Borough Council,10401,Employee Costs,IT - New Initiatives,Agency Staff Costs,15/09/2015,134609,975,HAYS SPECIALIST RECRUITMENT LTD,A00280,6,2015
Allerdale Borough Council,15301,Supplies & Services,Parking Services Pay Group,Uniforms,04/09/2015,134610,104.75,KELTIC,A00017,6,2015
Allerdale Borough Council,15811,Supplies & Services,IT Services,Software Maintenance,07/09/2015,134611,51.5,PHOENIX SOFTWARE LTD,A00229,6,2015
Allerdale Borough Council,14101,Transport,Shared IT Services Pay Group,Vehicle Leasing,12/10/2015,134612,199,ARNOLD CLARK FINANCE LIMITED,A01781,6,2015
Allerdale Borough Council,10101,Employee Costs,Shared IT Services Pay Group,Basic Pay,02/09/2015,134613,483.22,ADECCO RECRUITMENT,A00188,6,2015
Allerdale Borough Council,15810,Supplies & Services,IT Services,Software Licences,04/09/2015,134614,636.26,PHOENIX SOFTWARE LTD,A00229,6,2015
Allerdale Borough Council,10101,Employee Costs,Shared IT Services Pay Group,Basic Pay,09/09/2015,134615,385.27,ADECCO RECRUITMENT,A00188,6,2015
Allerdale Borough Council,12201,Premises,Corporate Property Maintenance,Internal Maintenance,16/08/2015,134616,1060,ROBERT SCOTT LTD,X00160,6,2015
Allerdale Borough Council,15501,Supplies & Services,Environmental Initiatives,Consultants Fees,27/08/2015,134617,750,WYG PLANNING & DESIGN,A00682,6,2015
Allerdale Borough Council,15803,Supplies & Services,IT Services,Hardware Purchase,09/09/2015,134618,1364.58,MISCO,A00125,6,2015
Allerdale Borough Council,15506,Supplies & Services,Food and Occupational Health,Professional Services,15/09/2015,134619,235,MP MARINE LTD,A00113,6,2015
Allerdale Borough Council,15501,Supplies & Services,Planning and Development,Consultants Fees,14/09/2015,134620,155.5,CAPITA (TREE/HEDGEROWS),A00683,6,2015
Allerdale Borough Council,15501,Supplies & Services,Planning and Development,Consultants Fees,14/09/2015,134621,313,CAPITA (TREE/HEDGEROWS),A00683,6,2015
Allerdale Borough Council,15506,Supplies & Services,Food and Occupational Health,Professional Services,09/09/2015,134622,235,MP MARINE LTD,A00113,6,2015
Allerdale Borough Council,15501,Supplies & Services,Homelessness,Consultants Fees,16/09/2015,134623,25,ASPATRIA MEDICAL GROUP,A00929,6,2015
Allerdale Borough Council,16150,Supplies & Services,Solway Wetlands Project,General Promotions,14/09/2015,134624,20.25,AUDIO VISUAL IMPACT LTD,A02240,6,2015
Allerdale Borough Council,15101,Supplies & Services,Parks Development,Equipment Costs,22/09/2015,134625,1183,ISS WATERERS LANDSCAPE,C00044,6,2015
Allerdale Borough Council,20150,Third Party Payments,new Lighting Columns,General Partnership Service Fees,25/09/2015,134626,0.01,ELECTRICITY NORTH WEST LTD,A00471,6,2015
Allerdale Borough Council,20150,Third Party Payments,new Lighting Columns,General Partnership Service Fees,25/09/2015,134627,0.04,ELECTRICITY NORTH WEST LTD,A00471,6,2015
Allerdale Borough Council,15510,Supplies & Services,Confidential Waste,Disposal of Waste,22/09/2015,134628,250,J DUFFY LTD T/A PW CONF BUS SERVICES,A01846,6,2015
Allerdale Borough Council,20150,Third Party Payments,Footways,General Partnership Service Fees,25/09/2015,134629,0.05,ELECTRICITY NORTH WEST LTD,A00471,6,2015
Allerdale Borough Council,15501,Supplies & Services,Environmental Initiatives,Consultants Fees,22/09/2015,134630,1000,WYG PLANNING & DESIGN,A00682,6,2015
Allerdale Borough Council,12402,Premises,Footways,Electricity,05/09/2015,134631,5029.31,N POWER ,X00015,6,2015
Allerdale Borough Council,12402,Premises,Corporate Property Maintenance,Electricity,04/09/2015,134632,2902.68,N POWER,X00015,6,2015
Allerdale Borough Council,12402,Premises,Corporate Property Maintenance,Electricity,09/09/2015,134633,1242.93,N POWER,X00015,6,2015
Allerdale Borough Council,12403,Premises,Corporate Property Maintenance,Gas,09/09/2015,134634,1061.08,BRITISH GAS,X00039,6,2015
Allerdale Borough Council,15501,Supplies & Services,Disposal of Allerdale Sites,Consultants Fees,29/05/2015,134635,400,BURNETTS SOLICITORS,A00129,6,2015
Allerdale Borough Council,10401,Employee Costs,Elections,Agency Staff Costs,09/09/2015,134636,8189.2,ASSOCIATION OF ELECTORAL ADMIN,A00189,6,2015
Allerdale Borough Council,10401,Employee Costs,Elections,Agency Staff Costs,12/08/2015,134637,10271,ASSOCIATION OF ELECTORAL ADMIN,A00189,6,2015
Allerdale Borough Council,20150,Third Party Payments,new Lighting Columns,General Partnership Service Fees,25/09/2015,134638,-0.01,ELECTRICITY NORTH WEST LTD,A00471,6,2015
Allerdale Borough Council,20150,Third Party Payments,new Lighting Columns,General Partnership Service Fees,25/09/2015,134639,-0.04,ELECTRICITY NORTH WEST LTD,A00471,6,2015
Allerdale Borough Council,20150,Third Party Payments,Footways,General Partnership Service Fees,25/09/2015,134640,-0.05,ELECTRICITY NORTH WEST LTD,A00471,6,2015
Allerdale Borough Council,10605,Employee Costs,Training,Travel,05/09/2015,134641,88.35,ENTERPRISE RENT A CAR,A01367,6,2015
Allerdale Borough Council,16150,Supplies & Services,Solway Wetlands Project,General Promotions,16/08/2015,134642,1020,ELLENVALE COACHES LTD,A02213,6,2015
Allerdale Borough Council,33121,Income,On street Parking,Excess Charges - Car Parks Income,21/09/2015,134643,25,Redacted information - included personal information ,M00793,6,2015
Allerdale Borough Council,54105,Capital Expenditure,Cluster of Empty Homes,Grants  Private Individuals (Capital),17/09/2015,134644,445.13,Redacted information - included personal information ,X00242,6,2015
Allerdale Borough Council,54105,Capital Expenditure,Disabled Facilities Grants,Grants  Private Individuals (Capital),17/09/2015,134645,3950,DOLPHIN STAIRLIFTS CUMBRIA,X00107,6,2015
Allerdale Borough Council,54105,Capital Expenditure,Disabled Facilities Grants,Grants  Private Individuals (Capital),23/09/2015,134646,3586.46,PARTNERSHIP IN PROPERTY MANAGEMENT LTD,X00120,6,2015
Allerdale Borough Council,54105,Capital Expenditure,Disabled Facilities Grants,Grants  Private Individuals (Capital),23/09/2015,134647,2190,BLUE FLAME SERVICES LTD,X00213,6,2015
Allerdale Borough Council,54105,Capital Expenditure,Cluster of Empty Homes,Grants  Private Individuals (Capital),24/09/2015,134648,2450,Redacted information - included personal information ,M00732,6,2015
Allerdale Borough Council,54105,Capital Expenditure,Disabled Facilities Grants,Grants  Private Individuals (Capital),24/09/2015,134649,3178.37,JACOBS STOBBARTS LIMITED,C00139,6,2015
Allerdale Borough Council,54105,Capital Expenditure,Disabled Facilities Grants,Grants  Private Individuals (Capital),24/09/2015,134650,2632,W W BUILDERS LIMITED,X00212,6,2015
Allerdale Borough Council,16350,Supplies & Services,Homelessness,Miscellaneous Expenses,25/09/2015,134651,350,Redacted information - included personal information ,M00683,6,2015
Allerdale Borough Council,14203,Transport,Members Services,Mileage Allowances - Car,24/09/2015,134652,3.2,Redacted information - included personal information ,M00260,6,2015
Allerdale Borough Council,16350,Supplies & Services,Supporting Homes at risk of flooding,Miscellaneous Expenses,25/09/2015,134653,5000,Redacted information - included personal information ,M00794,6,2015
Allerdale Borough Council,16150,Supplies & Services,Solway Wetlands Project,General Promotions,16/09/2015,134654,62.5,Redacted information - included personal information ,M00795,6,2015
Allerdale Borough Council,15502,Supplies & Services,Legal Services,Land Registry Fees,28/09/2015,134670,49,HM LAND REGISTRY,A00505,6,2015
Allerdale Borough Council,15601,Supplies & Services,Revenue,Postage,26/08/2015,134671,300,ROYAL MAIL LETTERS,X00021,6,2015
Allerdale Borough Council,70104,VAT,Input VAT,VAT - 20%,31/08/2015,134672,124,MARSTON GROUP LTD,A02080,6,2015
Allerdale Borough Council,15402,Supplies & Services,Customer Contact Centre,Photocopier Charges,04/08/2015,134673,24.27,KONICA MINOLTA BUSINESS SOLUTIONS UK LTD,A01556,6,2015
Allerdale Borough Council,15402,Supplies & Services,Customer Contact Centre,Photocopier Charges,04/08/2015,134674,-38.25,KONICA MINOLTA BUSINESS SOLUTIONS UK LTD,A01556,6,2015
Allerdale Borough Council,15301,Supplies & Services,Parking Services Pay Group,Uniforms,18/09/2015,134675,-35.9,KELTIC,A00017,6,2015
Allerdale Borough Council,54105,Capital Expenditure,Disabled Facilities Grants,Grants  Private Individuals (Capital),28/09/2015,134676,4350,W W BUILDERS LIMITED,X00212,6,2015
Allerdale Borough Council,54105,Capital Expenditure,Disabled Facilities Grants,Grants  Private Individuals (Capital),28/09/2015,134677,2788,BLUE FLAME SERVICES LTD,X00213,6,2015
Allerdale Borough Council,54105,Capital Expenditure,Disabled Facilities Grants,Grants  Private Individuals (Capital),28/09/2015,134678,3050,ACCESSIBLE BATHROOM SOLUTIONS LTD,X00235,6,2015
Allerdale Borough Council,54105,Capital Expenditure,Disabled Facilities Grants,Grants  Private Individuals (Capital),28/09/2015,134679,594,WHINBARROW DESIGN SERVICES,A00311,6,2015
Allerdale Borough Council,54105,Capital Expenditure,Disabled Facilities Grants,Grants  Private Individuals (Capital),28/09/2015,134680,1881.11,BLUE FLAME SERVICES LTD,X00213,6,2015
Allerdale Borough Council,15302,Supplies & Services,Environmental Services Pay Group,Protective Clothing,07/08/2015,134681,50,ARCO LIMITED,A00045,6,2015
Allerdale Borough Council,15400,Supplies & Services,Economic Growth Priorities,"Budget-Printing,Stationery & Office Supp",27/08/2015,134682,12,FIRPRESS PRINTERS,A00063,6,2015
Allerdale Borough Council,16150,Supplies & Services,Solway AONB Other Projects,General Promotions,23/07/2015,134683,120,WEST HOUSE,A02020,6,2015
Allerdale Borough Council,16150,Supplies & Services,Solway AONB Other Projects,General Promotions,24/08/2015,134684,120,WEST HOUSE,A02020,6,2015
Allerdale Borough Council,10604,Employee Costs,Chief Executive,Hire of Training Rooms/Venues,02/09/2015,134685,301.96,LAKES COLLEGE WEST CUMBRIA,A00093,6,2015
Allerdale Borough Council,14101,Transport,Mayoral Services,Vehicle Leasing,29/08/2015,134686,140,ACE TAXIS,A01927,6,2015
Allerdale Borough Council,14101,Transport,Mayoral Services,Vehicle Leasing,31/08/2015,134687,150,ACE TAXIS,A01927,6,2015
Allerdale Borough Council,15301,Supplies & Services,Parking Services Pay Group,Uniforms,09/09/2015,134688,72.85,KELTIC,A00017,6,2015
Allerdale Borough Council,15101,Supplies & Services,Parking Services Pay Group,Equipment Costs,14/09/2015,134689,99.8,ARCO LIMITED,A00045,6,2015
Allerdale Borough Council,15401,Supplies & Services,Housing & Health Pay Group,General Stationery,09/09/2015,134690,3.5,K&R BADGES LIMITED,A01328,6,2015
Allerdale Borough Council,15506,Supplies & Services,Legal Services,Professional Services,01/09/2015,134691,2400,18 ST JOHN ST CHAMBERS,A01923,6,2015
Allerdale Borough Council,15506,Supplies & Services,Communications and Marketing,Professional Services,07/09/2015,134692,680,LAKES PR LIMITED,A01912,6,2015
Allerdale Borough Council,10401,Employee Costs,Commissioning Support Pay Group,Agency Staff Costs,09/09/2015,134693,4500,CASH FRIDAY/LORD SEARCH & SELECTION LTD,A02108,6,2015
Allerdale Borough Council,10401,Employee Costs,Customer Services Pay Group,Agency Staff Costs,15/07/2015,134694,493.58,ADECCO RECRUITMENT,A00188,6,2015
Allerdale Borough Council,10401,Employee Costs,Customer Services Pay Group,Agency Staff Costs,05/08/2015,134695,493.58,ADECCO RECRUITMENT,A00188,6,2015
Allerdale Borough Council,10601,Employee Costs,Electoral Registration,External Courses & Seminar Fees,25/08/2015,134696,145,ASSOCIATION OF ELECTORAL ADMIN,A00189,6,2015
Allerdale Borough Council,81608,Balance Sheet,General Fund,Legal Provisions,11/09/2015,134697,2320,WYG PLANNING & DESIGN,A00682,6,2015
Allerdale Borough Council,15702,Supplies & Services,Off-street - Owned,Line Rentals,31/08/2015,134698,797.55,COBALT TELEPHONE TECHNOLOGY,A01008,6,2015
Allerdale Borough Council,15101,Supplies & Services,Parking Services Pay Group,Equipment Costs,17/09/2015,134699,59.99,ARCO LIMITED,A00045,6,2015
Allerdale Borough Council,10401,Employee Costs,Customer Services Pay Group,Agency Staff Costs,02/09/2015,134700,493.58,ADECCO RECRUITMENT,A00188,6,2015
Allerdale Borough Council,16150,Supplies & Services,Solway Wetlands Project,General Promotions,18/09/2015,134701,760,Redacted information - included personal information ,M00312,6,2015
Allerdale Borough Council,20101,Third Party Payments,Recycling,Cleansing Contract,31/08/2015,134702,987,CUMBRIA WASTE MANAGEMENT LTD,A01304,6,2015
Allerdale Borough Council,20101,Third Party Payments,Recycling,Cleansing Contract,31/08/2015,134703,2762.86,CUMBRIA WASTE MANAGEMENT LTD,A01304,6,2015
Allerdale Borough Council,20101,Third Party Payments,Recycling,Cleansing Contract,31/08/2015,134704,2360.87,CUMBRIA WASTE MANAGEMENT LTD,A01304,6,2015
Allerdale Borough Council,20101,Third Party Payments,Recycling,Cleansing Contract,31/08/2015,134705,2427.05,CUMBRIA WASTE MANAGEMENT LTD,A01304,6,2015
Allerdale Borough Council,16150,Supplies & Services,Solway Wetlands Project,General Promotions,28/09/2015,134706,85,CUMBRIA LOOS,A00217,6,2015
Allerdale Borough Council,15803,Supplies & Services,IT Services,Hardware Purchase,24/09/2015,134707,476.72,STORM TECHNOLOGIES,A01018,6,2015
Allerdale Borough Council,15803,Supplies & Services,IT Services,Hardware Purchase,26/09/2015,134708,119.62,STORM TECHNOLOGIES,A01018,6,2015
Allerdale Borough Council,20101,Third Party Payments,Recycling,Cleansing Contract,31/08/2015,134709,2400.88,CUMBRIA WASTE MANAGEMENT LTD,A01304,6,2015
Allerdale Borough Council,16003,Supplies & Services,Customer Services Pay Group,Security of Cash Movements,01/10/2015,134710,469.51,SECURITY PLUS LIMITED,A00503,6,2015
Allerdale Borough Council,12305,Premises,Corporate Property Maintenance,Inspections and Services,23/09/2015,134711,145,THE CUMBRIA CLOCK CO LTD,A00061,6,2015
Allerdale Borough Council,10401,Employee Costs,Customer Services Pay Group,Agency Staff Costs,23/09/2015,134712,293.48,ADECCO RECRUITMENT,A00188,6,2015
Allerdale Borough Council,12101,Premises,Car Parks Inspection & Maintenance,External Maintenance & Decoration,24/09/2015,134713,196.45,AST SIGNS LIMITED,A01473,6,2015
Allerdale Borough Council,10501,Employee Costs,Corporate Recruitment,Advertising Vacancies,07/09/2015,134714,500,SUNDAY PUBLISHING LTD,A02225,6,2015
Allerdale Borough Council,20101,Third Party Payments,Recycling,Cleansing Contract,31/08/2015,134715,2648.85,CUMBRIA WASTE MANAGEMENT LTD,A01304,6,2015
Allerdale Borough Council,20101,Third Party Payments,Recycling,Cleansing Contract,31/08/2015,134716,2909.13,CUMBRIA WASTE MANAGEMENT LTD,A01304,6,2015
Allerdale Borough Council,20101,Third Party Payments,Recycling,Cleansing Contract,31/08/2015,134717,120.96,CUMBRIA WASTE MANAGEMENT LTD,A01304,6,2015
Allerdale Borough Council,20101,Third Party Payments,Recycling,Cleansing Contract,31/08/2015,134718,2831.75,CUMBRIA WASTE MANAGEMENT LTD,A01304,6,2015
Allerdale Borough Council,20101,Third Party Payments,Recycling,Cleansing Contract,31/08/2015,134719,2880.68,CUMBRIA WASTE MANAGEMENT LTD,A01304,6,2015
Allerdale Borough Council,16150,Supplies & Services,Town Centre Management,General Promotions,28/09/2015,134720,100,FLEMING SQ RESIDENTS ASSOCIATION,M00248,6,2015
Allerdale Borough Council,16150,Supplies & Services,Town Centre Management,General Promotions,28/09/2015,134721,120,HER CITI,A00441,6,2015
Allerdale Borough Council,54105,Capital Expenditure,Disabled Facilities Grants,Grants  Private Individuals (Capital),29/09/2015,134722,1805,THYSSEN KRUPP ENCASA A DIVISION OF THYSSENKRUPP LIMITED,X00105,6,2015
Allerdale Borough Council,54105,Capital Expenditure,Disabled Facilities Grants,Grants  Private Individuals (Capital),29/09/2015,134723,2458.63,GMB DEVELOPMENTS LTD,C00094,6,2015
Allerdale Borough Council,54105,Capital Expenditure,Disabled Facilities Grants,Grants  Private Individuals (Capital),29/09/2015,134724,1495,JACOBS STOBBARTS LIMITED,C00139,6,2015
Allerdale Borough Council,54105,Capital Expenditure,Disabled Facilities Grants,Grants  Private Individuals (Capital),29/09/2015,134725,2820,JACOBS STOBBARTS LIMITED,C00139,6,2015
Allerdale Borough Council,12303,Premises,Corporate Property Maintenance,Window Cleaning,14/09/2015,134726,390,BORDERBRITE LTD,C00155,6,2015
Allerdale Borough Council,12305,Premises,Public Convenience Cleaning,Inspections and Services,16/09/2015,134727,17.67,PHS GROUP LTD,C00028,6,2015
Allerdale Borough Council,12203,Premises,Public Convenience Cleaning,Plumbing and Heating Maintenance,28/09/2015,134728,636,Redacted information - included personal information ,C00008,6,2015
Allerdale Borough Council,20150,Third Party Payments,Footways,General Partnership Service Fees,30/09/2015,134729,260,Redacted information - included personal information ,A00242,6,2015
Allerdale Borough Council,15102,Supplies & Services,Off-street - Owned,Equipment Repair & Maintenance,02/09/2015,134730,17155.44,METRIC GROUP LTD,A00568,6,2015
Allerdale Borough Council,15600,Supplies & Services,Electoral Registration,Budget-Postal Services,24/08/2015,134731,2666.75,ROYAL MAIL LETTERS,X00021,6,2015
Allerdale Borough Council,15600,Supplies & Services,Electoral Registration,Budget-Postal Services,01/05/2015,134732,3686.08,ROYAL MAIL LETTERS,X00021,6,2015
Allerdale Borough Council,20101,Third Party Payments,Recycling,Cleansing Contract,31/08/2015,134733,2691.71,CUMBRIA WASTE MANAGEMENT LTD,A01304,6,2015
Allerdale Borough Council,15506,Supplies & Services,IT - New Initiatives,Professional Services,23/06/2015,134734,317.3,CIVICA UK LIMITED,A00006,6,2015
Allerdale Borough Council,15550,Supplies & Services,Financial Planning & Economic Growth,General-Service Related Fees,30/09/2015,134735,7200,BIZCAT UK LIMITED,A02214,6,2015
Allerdale Borough Council,20101,Third Party Payments,Weekly Collection Support Scheme,Cleansing Contract,15/09/2015,134736,10500,FCC ENVIRONMENT SERVICES (FOCSA),A00085,6,2015
Allerdale Borough Council,75103,Holding and Control Accounts,Payroll Suspense Account,PAYROLL September 15 Travel & Subsistence  ,,,"21,917.66",INLAND REVENUE,X00038,6,2015
